bitfinex/quotes_BTCUSD_20241018
["timestamp","ask_amount","ask_price","bid_price","bid_amount"]
[1729250874029,0.148945,67912.0,67911.0,0.09713264]
[1729250874264,0.148945,67912.0,67911.0,0.10684961]
[1729250874265,0.001696,67912.0,67911.0,0.10684961]
[1729250874498,0.001696,67912.0,67911.0,0.09713264]
[1729250875595,0.001696,67912.0,67911.0,0.00881306]
[1729250877666,0.001696,67912.0,67911.0,0.09713264]
[1729250880412,0.148945,67912.0,67911.0,0.09713264]
[1729250880624,0.001696,67912.0,67911.0,0.09713264]
[1729250882400,0.001696,67912.0,67911.0,0.09712375]
[1729250885386,0.001696,67912.0,67911.0,0.12891778]
[1729250885859,0.001696,67912.0,67911.0,0.01852942]
[1729250886999,0.001696,67912.0,67911.0,0.12889776]
[1729250887474,0.001696,67912.0,67911.0,0.12890121]
[1729250889416,0.001696,67912.0,67911.0,0.01852942]
[1729250889647,0.001696,67912.0,67911.0,0.12889798]
[1729250889865,0.001696,67912.0,67911.0,0.01852942]
[1729250892859,0.001696,67912.0,67911.0,0.12890073]
[1729250893072,0.001696,67912.0,67911.0,0.01852942]
[1729250893300,0.001696,67912.0,67911.0,0.01852869]
[1729250893955,0.001696,67912.0,67911.0,0.12890429]
[1729250894773,0.00039895,67912.0,67911.0,0.12890429]
[1729250895440,0.00039895,67912.0,67911.0,0.13290429]
[1729250895646,0.14764795,67912.0,67911.0,0.13290429]
[1729250896028,0.00039895,67912.0,67911.0,0.13290429]
[1729250896267,0.14764795,67912.0,67911.0,0.13290429]
[1729250896713,0.00039895,67912.0,67911.0,0.13290429]
[1729250897133,0.14764795,67912.0,67911.0,0.13290989]
[1729250897351,0.14764795,67912.0,67911.0,0.13291077]
[1729250901280,0.14764795,67912.0,67911.0,0.13291428]
[1729250902151,0.14764795,67912.0,67911.0,0.13292914]
[1729250902777,0.14764795,67912.0,67911.0,0.13293061]
[1729250905509,0.14764795,67912.0,67911.0,0.1329317]
[1729250907122,0.14764795,67912.0,67911.0,0.13293818]
[1729250909063,0.14764795,67912.0,67911.0,0.13293869]
[1729250910366,0.00039895,67912.0,67911.0,0.13293869]
[1729250910603,0.14764795,67912.0,67911.0,0.13293869]
[1729250912186,0.14764795,67912.0,67911.0,0.13294863]
[1729250912581,0.14764795,67912.0,67911.0,0.02253615]
[1729250912823,0.14764795,67912.0,67911.0,0.13295525]
[1729250913042,0.14764795,67912.0,67911.0,0.02253701]
[1729250917025,0.14764795,67912.0,67911.0,0.02253912]
[1729250917898,0.26247785,67912.0,67911.0,0.01595292]
[1729250918112,0.26247785,67912.0,67911.0,0.02253912]
[1729250918356,0.26247785,67912.0,67911.0,0.02053912]
[1729250918818,0.26247785,67912.0,67911.0,0.02153912]
[1729250919037,0.36197785,67912.0,67911.0,0.10991515]
[1729250919265,0.36197785,67912.0,67911.0,0.003828]
[1729250919488,0.36197785,67912.0,67911.0,0.07010796]
[1729250919726,0.36197785,67912.0,67911.0,0.06810796]
[1729250919947,0.36197785,67912.0,67911.0,0.07509302]
[1729250920158,0.36197785,67912.0,67911.0,0.07609302]
[1729250920374,0.36197785,67912.0,67911.0,0.07509302]
[1729250920802,0.36297785,67912.0,67911.0,0.07509302]
[1729250923266,0.36297785,67912.0,67911.0,0.00881306]
[1729250923932,0.36297785,67912.0,67911.0,0.07509302]
[1729250924366,0.36297785,67912.0,67911.0,0.00881306]
[1729250924796,0.24814795,67912.0,67911.0,0.00881306]
[1729250925877,0.36297785,67912.0,67911.0,0.00881306]
[1729250930241,0.36297785,67912.0,67911.0,0.05297731]
[1729250931083,0.36297785,67912.0,67911.0,0.07509302]
[1729250931302,0.36297785,67912.0,67911.0,0.00881306]
[1729250931458,0.36297785,67912.0,67911.0,0.07509302]
[1729250931689,0.36297785,67912.0,67911.0,0.00881306]
[1729250931864,0.36297785,67912.0,67911.0,0.08920403]
[1729250932063,0.36297785,67912.0,67911.0,0.09718909]
[1729250932486,0.36297785,67912.0,67911.0,0.08915157]
[1729250933493,0.36297785,67912.0,67911.0,0.000828]
[1729250933741,0.36297785,67912.0,67911.0,0.08915157]
[1729250933950,0.26347785,67912.0,67911.0,0.08915157]
[1729250934366,0.26347785,67912.0,67911.0,0.000828]
[1729250934729,0.26347785,67912.0,67911.0,0.08915157]
[1729250934922,0.26347785,67912.0,67911.0,0.000828]
[1729250935136,0.26347785,67912.0,67911.0,0.08915157]
[1729250939785,0.26347785,67912.0,67911.0,0.000828]
[1729250940252,0.26347785,67912.0,67911.0,0.06707575]
[1729250940464,0.26347785,67912.0,67911.0,0.07506081]
[1729250942949,0.26329055,67912.0,67911.0,0.07506081]
[1729250943648,0.43929055,67912.0,67911.0,0.00881306]
[1729250944089,0.43929055,67912.0,67911.0,0.000828]
[1729250946611,0.71305884,67912.0,67911.0,0.000828]
[1729250946861,0.71805884,67912.0,67911.0,0.000828]
[1729250947284,0.6032497,67912.0,67911.0,0.000828]
[1729250947496,0.61136927,67912.0,67911.0,0.000828]
[1729250947709,0.61336927,67912.0,67911.0,0.000828]
[1729250948000,0.61536927,67912.0,67911.0,0.002828]
[1729250948211,0.49853937,67912.0,67911.0,0.001828]
[1729250948441,0.49853937,67912.0,67911.0,0.002828]
[1729250948442,0.73019917,67912.0,67911.0,0.002828]
[1729250949778,0.72819917,67912.0,67911.0,0.001828]
[1729250950207,0.61736927,67912.0,67911.0,0.002828]
[1729250951088,0.50253937,67912.0,67911.0,0.002828]
[1729250951517,0.50053937,67912.0,67911.0,0.002828]
[1729250951739,0.50253937,67912.0,67911.0,0.002828]
[1729250952913,0.50053937,67912.0,67911.0,0.002828]
[1729250954085,0.50253937,67912.0,67911.0,0.002828]
[1729250955237,0.50053937,67912.0,67911.0,0.002828]
[1729250955927,0.50253937,67912.0,67911.0,0.002828]
[1729250960436,0.50053937,67912.0,67911.0,0.002828]
[1729250961814,0.50253937,67912.0,67911.0,0.002828]
[1729250962905,0.61536927,67912.0,67911.0,0.002828]
[1729250963124,0.61736927,67912.0,67911.0,0.002828]
[1729250965088,0.74948629,67912.0,67911.0,0.002828]
[1729250968236,0.61736927,67912.0,67911.0,0.002828]
[1729250969626,0.50253937,67912.0,67911.0,0.002828]
[1729250984147,0.61736927,67912.0,67911.0,0.002828]
[1729250986467,0.61536927,67912.0,67911.0,0.002828]
[1729250989315,0.61736927,67912.0,67911.0,0.002828]
[1729250991239,0.50253937,67912.0,67911.0,0.002828]
[1729250995475,0.015,67897.0,67896.0,0.04412277]
[1729250995703,0.015,67897.0,67893.0,0.000828]
[1729250995704,0.152288,67894.0,67893.0,0.000828]
[1729250997062,0.31224715,67894.0,67893.0,0.001828]
[1729250997304,0.31724715,67894.0,67893.0,0.001828]
[1729250997523,0.31724715,67894.0,67893.0,0.000828]
[1729250997524,0.31124715,67894.0,67893.0,0.000828]
[1729250997771,0.31724715,67894.0,67893.0,0.001828]
[1729250998033,0.31724715,67894.0,67893.0,0.000828]
[1729250998034,0.42607705,67894.0,67893.0,0.000828]
[1729250998502,0.45990734,67894.0,67893.0,0.001828]
[1729250998742,0.463224,67894.0,67893.0,0.000828]
[1729250999402,0.474224,67894.0,67893.0,0.001828]
[1729250999937,0.54519371,67894.0,67893.0,0.001828]
[1729251000177,0.63529371,67894.0,67893.0,0.002828]
[1729251000615,0.52046381,67894.0,67893.0,0.002828]
[1729251000848,0.33956381,67894.0,67893.0,0.002828]
[1729251004226,0.32456381,67894.0,67893.0,0.002828]
[1729251004447,0.44439371,67894.0,67893.0,0.002828]
[1729251005544,0.166288,67894.0,67893.0,0.002828]
[1729251006980,0.2811179,67894.0,67893.0,0.002828]
[1729251008732,0.166288,67894.0,67893.0,0.002828]
[1729251010753,0.166288,67894.0,67893.0,0.183228]
[1729251011432,0.155288,67894.0,67893.0,0.182228]
[1729251011646,0.147288,67894.0,67893.0,0.181228]
[1729251011867,0.152288,67894.0,67893.0,0.181228]
[1729251012076,0.157288,67894.0,67893.0,0.181228]
[1729251012317,0.01,67894.0,67893.0,0.181228]
[1729251012527,0.152288,67894.0,67893.0,0.181228]
[1729251012971,0.156288,67894.0,67893.0,0.181228]
[1729251013668,0.009,67894.0,67893.0,0.181228]
[1729251013915,0.009,67894.0,67893.0,0.24744639]
[1729251014595,0.004,67894.0,67893.0,0.24744639]
[1729251015050,0.4110289,67902.0,67893.0,0.14914639]
[1729251015319,0.4110289,67902.0,67895.0,0.04413969]
[1729251015587,0.14728,67898.0,67895.0,0.04413969]
[1729251015827,0.2621139,67896.0,67895.0,0.04413969]
[1729251016512,0.147288,67894.0,67893.0,0.082928]
[1729251016730,0.147288,67894.0,67893.0,0.000828]
[1729251016978,0.23241349,67894.0,67893.0,0.000828]
[1729251017191,0.30124715,67894.0,67893.0,0.000828]
[1729251017410,0.30124715,67894.0,67893.0,0.00749228]
[1729251017626,0.147288,67894.0,67893.0,0.00918189]
[1729251017891,0.2621179,67894.0,67893.0,0.000828]
[1729251018800,0.2651179,67894.0,67893.0,0.000828]
[1729251019238,0.2681179,67894.0,67893.0,0.000828]
[1729251023755,0.1208299,67894.0,67893.0,0.000828]
[1729251023981,0.153288,67894.0,67893.0,0.00923947]
[1729251024204,0.2681179,67894.0,67893.0,0.00923947]
[1729251030233,0.153288,67894.0,67893.0,0.00923947]
[1729251031589,0.153288,67894.0,67893.0,0.00923947]
[1729251033154,0.006,67894.0,67893.0,0.00923947]
[1729251033401,0.153288,67894.0,67893.0,0.00923947]
[1729251034075,0.006,67894.0,67893.0,0.00923947]
[1729251034515,0.2681179,67894.0,67893.0,0.00923947]
[1729251035628,0.006,67894.0,67893.0,0.094028]
[1729251036079,0.006,67894.0,67893.0,0.14658482]
[1729251036512,0.006,67894.0,67893.0,0.10243947]
[1729251041414,0.006,67894.0,67893.0,0.18233947]
[1729251041653,0.006,67894.0,67893.0,0.22648522]
[1729251041890,0.006,67894.0,67893.0,0.38348964]
[1729251042104,0.006,67894.0,67893.0,0.33934389]
[1729251042342,0.006,67894.0,67893.0,0.42763231]
[1729251042575,0.003,67894.0,67893.0,0.2803387]
[1729251042792,0.147277,67899.0,67893.0,0.2803387]
[1729251043009,0.001656,67902.0,67897.0,0.0441424]
[1729251043184,0.147274,67901.0,67897.0,0.0441424]
[1729251043387,0.001656,67902.0,67897.0,0.0441424]
[1729251043607,0.147276,67900.0,67897.0,0.0441424]
[1729251043838,0.147273,67901.0,67897.0,0.0441424]
[1729251044216,0.148928,67902.0,67897.0,0.0441424]
[1729251044625,0.148927,67902.0,67897.0,0.0441424]
[1729251044874,0.147274,67901.0,67897.0,0.0441424]
[1729251045115,0.001656,67902.0,67897.0,0.0441424]
[1729251045336,0.003656,67902.0,67897.0,0.0441424]
[1729251045455,0.005656,67902.0,67897.0,0.0441424]
[1729251045689,0.147273,67901.0,67897.0,0.0441424]
[1729251045894,0.005656,67902.0,67897.0,0.0441424]
[1729251046121,0.147277,67899.0,67898.0,0.00137496]
[1729251046762,0.294547,67901.0,67898.0,0.00137496]
[1729251046980,0.149273,67901.0,67898.0,0.00137496]
[1729251047431,0.147275,67900.0,67898.0,0.00137496]
[1729251047658,0.004,67901.0,67898.0,0.00137496]
[1729251048108,0.002,67901.0,67898.0,0.00137496]
[1729251048341,0.150273,67901.0,67898.0,0.00137496]
[1729251048563,0.003,67901.0,67900.0,0.26489854]
[1729251048814,0.003,67901.0,67900.0,0.32308333]
[1729251049038,0.003,67901.0,67900.0,0.2875166]
[1729251049263,0.003,67901.0,67900.0,0.17717393]
[1729251049748,0.006,67901.0,67900.0,0.28749001]
[1729251049980,0.003,67901.0,67900.0,0.28749001]
[1729251050186,0.003,67901.0,67900.0,0.27578168]
[1729251050351,0.003,67901.0,67900.0,0.17616974]
[1729251051222,0.001656,67902.0,67900.0,0.17616974]
[1729251051451,0.001656,67902.0,67900.0,0.27775816]
[1729251051671,0.001656,67902.0,67901.0,0.08821336]
[1729251051879,0.001656,67902.0,67901.0,0.08957429]
[1729251052301,0.001656,67902.0,67901.0,0.00136093]
[1729251052980,0.001656,67902.0,67901.0,0.08957429]
[1729251053228,0.001656,67902.0,67901.0,0.00136093]
[1729251053456,0.001656,67902.0,67901.0,0.08957429]
[1729251054327,0.001656,67902.0,67901.0,0.00136093]
[1729251055273,0.001656,67902.0,67901.0,0.23684729]
[1729251055469,0.001656,67902.0,67901.0,0.08957429]
[1729251055904,0.001656,67902.0,67901.0,0.00136093]
[1729251056591,0.001656,67902.0,67901.0,0.06747638]
[1729251056804,0.001656,67902.0,67901.0,0.00136093]
[1729251057265,0.001656,67902.0,67901.0,0.06747588]
[1729251057698,0.001656,67902.0,67901.0,0.06746975]
[1729251058383,0.148927,67902.0,67901.0,0.00136093]
[1729251058862,0.148927,67902.0,67899.0,0.07407399]
[1729251059067,0.148927,67902.0,67900.0,0.00107782]
[1729251060205,0.001656,67902.0,67900.0,0.00107782]
[1729251060442,0.147275,67900.0,67899.0,0.03]
[1729251060651,0.2621049,67900.0,67899.0,0.03]
[1729251060871,0.69999395,67900.0,67899.0,0.03]
[1729251061109,0.69999395,67900.0,67899.0,0.002]
[1729251061329,0.69999395,67900.0,67899.0,0.004]
[1729251062003,0.69999395,67900.0,67897.0,0.000828]
[1729251062004,0.147279,67898.0,67897.0,0.000828]
[1729251062919,0.147279,67898.0,67897.0,0.00191986]
[1729251063154,0.147279,67899.0,67897.0,0.00191986]
[1729251063380,0.153279,67898.0,67897.0,0.00291986]
[1729251063821,0.158279,67898.0,67897.0,0.001828]
[1729251064035,0.153279,67898.0,67897.0,0.001828]
[1729251064281,0.158279,67898.0,67897.0,0.001828]
[1729251064519,0.153279,67898.0,67897.0,0.001828]
[1729251064757,0.161279,67898.0,67897.0,0.002828]
[1729251073392,0.161279,67898.0,67897.0,0.01157068]
[1729251073628,0.161279,67898.0,67897.0,0.00397406]
[1729251074544,0.161279,67898.0,67897.0,0.002828]
[1729251082590,0.253179,67898.0,67897.0,0.002828]
[1729251086075,0.44263898,67898.0,67897.0,0.002828]
[1729251090463,0.334779,67898.0,67897.0,0.002828]
[1729251092018,0.48323815,67898.0,67897.0,0.002828]
[1729251093406,0.160779,67898.0,67897.0,0.002828]
[1729251094794,0.014,67898.0,67897.0,0.002828]
[1729251095300,0.014,67898.0,67897.0,0.01420442]
[1729251095750,0.008,67898.0,67897.0,0.01320442]
[1729251095979,0.008,67898.0,67897.0,0.00348915]
[1729251096205,0.011,67898.0,67897.0,0.00348915]
[1729251096666,0.003,67898.0,67897.0,0.01220264]
[1729251096891,0.007,67898.0,67897.0,0.00248915]
[1729251097818,0.008656,67898.0,67897.0,0.49047179]
[1729251098063,0.008656,67898.0,67897.0,0.15948209]
[1729251098295,0.008656,67898.0,67897.0,0.48058653]
[1729251098524,0.008656,67898.0,67897.0,0.47764124]
[1729251099027,0.001656,67898.0,67897.0,0.47764124]
[1729251099266,0.001656,67898.0,67897.0,0.48264124]
[1729251099491,0.001656,67898.0,67897.0,0.47764124]
[1729251099971,0.002656,67898.0,67897.0,0.48964124]
[1729251102205,0.003656,67898.0,67897.0,0.6401154]
[1729251102428,0.003656,67898.0,67897.0,0.64008627]
[1729251103385,0.003656,67898.0,67897.0,0.64007854]
[1729251103614,0.003656,67898.0,67897.0,0.50782849]
[1729251106237,0.003656,67898.0,67897.0,0.50638136]
[1729251107347,0.003656,67898.0,67897.0,0.50637589]
[1729251108516,0.003656,67898.0,67897.0,0.49669152]
[1729251108757,0.003656,67898.0,67897.0,0.50637425]
[1729251110104,0.003656,67898.0,67897.0,0.5041649]
[1729251110984,0.003656,67898.0,67897.0,0.5141649]
[1729251111236,0.003656,67898.0,67897.0,0.50448217]
[1729251111431,0.003656,67898.0,67897.0,0.51416366]
[1729251113599,0.001656,67902.0,67901.0,0.335473]
[1729251113838,0.001656,67902.0,67901.0,0.60894354]
[1729251114062,0.001656,67902.0,67901.0,0.60913885]
[1729251114996,0.001656,67902.0,67901.0,0.7314843]
[1729251115226,0.001656,67902.0,67901.0,0.62313598]
[1729251115634,0.001656,67902.0,67901.0,0.75513781]
[1729251116068,0.001656,67902.0,67901.0,0.74113781]
[1729251116387,0.001656,67902.0,67901.0,0.75513781]
[1729251116609,0.001656,67902.0,67901.0,1.43511304]
[1729251117323,0.001656,67902.0,67901.0,1.44911304]
[1729251117542,0.001656,67902.0,67901.0,1.31713471]
[1729251117977,0.001656,67902.0,67901.0,1.30313471]
[1729251118470,0.001656,67902.0,67901.0,1.18830481]
[1729251118680,0.001656,67902.0,67901.0,1.20230481]
[1729251118925,0.001656,67902.0,67901.0,1.17430481]
[1729251119152,0.001656,67902.0,67901.0,1.1743056]
[1729251119386,0.001656,67902.0,67901.0,1.1883056]
[1729251119608,0.001656,67902.0,67901.0,0.5083056]
[1729251120549,0.001656,67902.0,67901.0,0.5223056]
[1729251121714,0.001656,67902.0,67901.0,0.51262746]
[1729251121931,0.001656,67902.0,67901.0,0.522311]
[1729251126516,0.001656,67902.0,67901.0,0.524311]
[1729251126778,0.001656,67902.0,67901.0,1.214311]
[1729251127880,0.001656,67902.0,67901.0,1.212311]
[1729251129462,0.001656,67902.0,67901.0,1.3271409]
[1729251129694,0.001656,67902.0,67901.0,0.6371409]
[1729251130136,0.001656,67902.0,67901.0,0.74708336]
[1729251130601,0.001656,67902.0,67901.0,0.6371409]
[1729251133982,0.001656,67902.0,67901.0,0.64472017]
[1729251135100,0.001656,67902.0,67901.0,0.64474208]
[1729251138497,0.001656,67902.0,67901.0,0.64474208]
[1729251138743,0.001656,67902.0,67901.0,0.77665634]
[1729251139630,0.001656,67902.0,67901.0,0.64474208]
[1729251139869,0.001656,67902.0,67901.0,0.19275303]
[1729251140119,0.3562569,67902.0,67901.0,0.15567673]
[1729251140347,0.4317569,67902.0,67901.0,0.11160125]
[1729251140805,0.4317569,67902.0,67901.0,0.03577458]
[1729251141032,0.4317569,67902.0,67901.0,0.00777458]
[1729251141329,0.4317569,67902.0,67901.0,0.01377458]
[1729251141547,0.5465868,67902.0,67901.0,0.014]
[1729251141778,0.5465868,67902.0,67898.0,0.04492337]
[1729251141779,0.2844859,67902.0,67898.0,0.04492337]
[1729251142036,0.4334069,67899.0,67898.0,0.000828]
[1729251142487,0.59236605,67899.0,67898.0,0.000828]
[1729251144320,0.59836605,67899.0,67898.0,0.006828]
[1729251144541,0.59836605,67899.0,67898.0,0.001828]
[1729251144984,0.59936605,67899.0,67898.0,0.001828]
[1729251146160,0.60136605,67899.0,67898.0,0.001828]
[1729251146851,0.59936605,67899.0,67898.0,0.000828]
[1729251147083,0.59536605,67899.0,67898.0,0.000828]
[1729251147294,0.60136605,67899.0,67898.0,0.001828]
[1729251147529,0.60036605,67899.0,67898.0,0.001828]
[1729251147764,0.60745639,67899.0,67898.0,0.001828]
[1729251147986,0.60545639,67899.0,67898.0,0.001828]
[1729251148205,0.60145639,67899.0,67898.0,0.000828]
[1729251148439,0.60545639,67899.0,67898.0,0.001828]
[1729251149201,0.60545639,67899.0,67898.0,0.002828]
[1729251149202,0.61945639,67899.0,67898.0,0.002828]
[1729251150309,0.60545639,67899.0,67898.0,0.001828]
[1729251150537,0.60145639,67899.0,67898.0,0.000828]
[1729251150724,0.61545639,67899.0,67898.0,0.001828]
[1729251150943,0.61945639,67899.0,67898.0,0.002828]
[1729251151166,0.60145639,67899.0,67898.0,0.000828]
[1729251151308,0.60545639,67899.0,67898.0,0.001828]
[1729251152548,0.60045639,67899.0,67898.0,0.001828]
[1729251152981,0.60545639,67899.0,67898.0,0.001828]
[1729251153281,0.61945639,67899.0,67898.0,0.002828]
[1729251156908,0.60945639,67899.0,67898.0,0.002828]
[1729251157680,0.46049724,67899.0,67898.0,0.002828]
[1729251161418,0.34566734,67899.0,67898.0,0.002828]
[1729251161670,0.331577,67899.0,67898.0,0.002828]
[1729251161891,0.165277,67899.0,67898.0,0.002828]
[1729251162569,0.165277,67899.0,67898.0,0.001828]
[1729251162570,0.151277,67899.0,67898.0,0.001828]
[1729251163010,0.009,67899.0,67898.0,0.002828]
[1729251163450,0.004,67899.0,67898.0,0.001828]
[1729251163904,0.005,67899.0,67898.0,0.00962962]
[1729251164424,0.004,67899.0,67898.0,0.15885389]
[1729251164634,0.004,67899.0,67898.0,0.48101304]
[1729251164841,0.004,67899.0,67898.0,0.48206777]
[1729251165082,0.001656,67902.0,67901.0,0.147273]
[1729251165295,0.001656,67902.0,67901.0,0.29917718]
[1729251165504,0.001656,67902.0,67901.0,0.29623215]
[1729251166155,0.001656,67902.0,67901.0,0.29663702]
[1729251166598,0.001656,67902.0,67901.0,0.14936402]
[1729251166813,0.001656,67902.0,67901.0,0.29663702]
[1729251167235,0.001656,67902.0,67901.0,0.29763702]
[1729251167454,0.001656,67902.0,67901.0,0.30521629]
[1729251168322,0.001656,67902.0,67901.0,0.30721629]
[1729251171176,0.1164859,67902.0,67901.0,0.01098414]
[1729251171609,0.001656,67902.0,67901.0,0.003]
[1729251171817,0.001656,67902.0,67901.0,0.01098414]
[1729251172092,0.001656,67902.0,67901.0,0.00340487]
[1729251175162,0.1164859,67902.0,67901.0,0.01098414]
[1729251175392,0.1164859,67902.0,67901.0,0.00340487]
[1729251177940,0.001656,67902.0,67901.0,0.00340487]
[1729251181457,0.001656,67902.0,67901.0,0.15067787]
[1729251187275,0.1148299,67904.0,67901.0,0.15067787]
[1729251188178,0.1148299,67904.0,67901.0,0.14867787]
[1729251188624,0.1148299,67904.0,67901.0,0.15067787]
[1729251189071,0.1148299,67904.0,67901.0,0.14967787]
[1729251189513,0.1148299,67904.0,67901.0,0.15067787]
[1729251189757,0.1883299,67904.0,67901.0,0.15067787]
[1729251189957,0.1883299,67904.0,67902.0,0.14727]
[1729251190166,0.1883299,67904.0,67901.0,0.00340487]
[1729251190382,0.0735,67904.0,67903.0,0.00039552]
[1729251190593,0.0735,67904.0,67902.0,0.00040019]
[1729251190824,0.0735,67904.0,67903.0,0.00039552]
[1729251191531,0.0735,67904.0,67901.0,0.147272]
[1729251191749,0.075156,67904.0,67903.0,0.00039552]
[1729251191987,0.075156,67904.0,67902.0,0.00040019]
[1729251192199,0.075156,67904.0,67903.0,0.00039552]
[1729251192417,0.075156,67904.0,67903.0,0.01010776]
[1729251192639,0.075156,67904.0,67903.0,0.0101077]
[1729251193774,0.1899859,67904.0,67903.0,0.0101077]
[1729251193958,0.1909859,67904.0,67903.0,0.0101077]
[1729251199247,0.076156,67904.0,67903.0,0.0101077]
[1729251200388,0.076156,67904.0,67903.0,0.01011616]
[1729251200955,0.223422,67904.0,67903.0,0.01011619]
[1729251201103,0.076156,67904.0,67903.0,0.01011619]
[1729251201349,0.5494818,67904.0,67903.0,0.01011619]
[1729251201577,0.5494818,67904.0,67903.0,0.00039552]
[1729251201578,0.6250818,67904.0,67903.0,0.00039552]
[1729251201804,0.6250818,67904.0,67898.0,0.22158505]
[1729251201805,0.147277,67899.0,67898.0,0.22158505]
[1729251202030,0.2621069,67899.0,67898.0,0.22158505]
[1729251202239,0.2621069,67899.0,67898.0,0.00338437]
[1729251202496,0.2621069,67899.0,67898.0,0.000828]
[1729251203337,0.2621069,67899.0,67898.0,0.00338437]
[1729251203587,0.2621069,67899.0,67898.0,0.00538437]
[1729251204071,0.147277,67899.0,67898.0,0.00538437]
[1729251204296,0.2621069,67899.0,67898.0,0.00538437]
[1729251204518,0.294537,67903.0,67898.0,0.01597665]
[1729251204744,0.247156,67904.0,67898.0,0.01597665]
[1729251204745,0.075156,67904.0,67899.0,0.04402988]
[1729251204975,0.075156,67904.0,67902.0,0.04402988]
[1729251205183,0.075156,67904.0,67903.0,0.147268]
[1729251205423,0.075156,67904.0,67903.0,0.22088341]
[1729251206321,0.075156,67904.0,67903.0,0.09563035]
[1729251206968,0.078156,67904.0,67903.0,0.09563035]
[1729251207372,0.078156,67904.0,67903.0,0.1176453]
[1729251207844,0.078156,67904.0,67903.0,0.11795286]
[1729251208485,0.079156,67904.0,67903.0,0.11795286]
[1729251208706,0.079156,67904.0,67903.0,0.26522086]
[1729251209346,0.079156,67904.0,67903.0,0.11795286]
[1729251209580,0.076156,67904.0,67903.0,0.11795286]
[1729251209804,0.077156,67904.0,67903.0,0.11795286]
[1729251210409,0.076156,67904.0,67903.0,0.11795286]
[1729251210829,0.077156,67904.0,67903.0,0.11795286]
[1729251211032,0.076156,67904.0,67903.0,0.11795286]
[1729251211263,0.076156,67904.0,67903.0,0.12046329]
[1729251214139,0.076156,67904.0,67903.0,0.26773129]
[1729251214367,0.076156,67904.0,67903.0,0.24235894]
[1729251214594,0.076156,67904.0,67903.0,0.37481767]
[1729251214806,0.076156,67904.0,67903.0,0.24235894]
[1729251215539,0.075156,67904.0,67903.0,0.24235894]
[1729251215740,0.075156,67904.0,67903.0,0.24635894]
[1729251215956,0.075156,67904.0,67903.0,0.25235894]
[1729251216439,0.075156,67904.0,67903.0,0.40131809]
[1729251218471,0.075156,67904.0,67903.0,0.53375203]
[1729251222012,0.075156,67904.0,67903.0,0.40631809]
[1729251222242,0.075156,67904.0,67903.0,0.41631809]
[1729251222905,0.075156,67904.0,67903.0,0.70498522]
[1729251223123,0.075156,67904.0,67903.0,0.50951809]
[1729251223316,0.076156,67904.0,67903.0,0.52250886]
[1729251223922,0.076156,67904.0,67903.0,0.51650886]
[1729251224340,0.076156,67904.0,67903.0,0.53050886]
[1729251224549,0.076156,67904.0,67903.0,0.51450886]
[1729251224749,0.075156,67904.0,67903.0,0.50150886]
[1729251225078,0.076156,67904.0,67903.0,0.52850886]
[1729251226031,0.076156,67904.0,67903.0,0.53050886]
[1729251226255,0.076156,67904.0,67903.0,0.72578821]
[1729251226498,0.076156,67904.0,67903.0,0.72378821]
[1729251226723,0.076156,67904.0,67903.0,0.52850127]
[1729251227188,0.076156,67904.0,67903.0,0.51880817]
[1729251227409,0.076156,67904.0,67903.0,0.52849942]
[1729251231056,0.076156,67904.0,67903.0,0.52849607]
[1729251239002,0.076156,67904.0,67903.0,0.51880817]
[1729251239235,0.076156,67904.0,67903.0,0.52850422]
[1729251240621,0.076156,67904.0,67903.0,0.33330817]
[1729251240928,0.076156,67904.0,67903.0,0.34300639]
[1729251241492,0.076156,67904.0,67903.0,0.19904724]
[1729251241663,0.076156,67904.0,67903.0,0.19904978]
[1729251242076,0.076156,67904.0,67903.0,0.30919024]
[1729251242351,0.076156,67904.0,67903.0,0.19904908]
[1729251243066,0.076156,67904.0,67903.0,0.03708102]
[1729251243067,0.399822,67904.0,67903.0,0.03708102]
[1729251243281,0.399822,67904.0,67903.0,0.08114171]
[1729251243282,0.5146519,67904.0,67903.0,0.08114171]
[1729251243503,0.5146519,67904.0,67903.0,0.03708102]
[1729251244186,0.5136519,67904.0,67903.0,0.02408102]
[1729251244427,0.5136519,67904.0,67903.0,0.01008102]
[1729251244687,0.5136519,67904.0,67903.0,0.009]
[1729251245134,0.5136519,67904.0,67903.0,0.005]
[1729251245811,0.5136519,67904.0,67902.0,0.000828]
[1729251245812,0.147268,67903.0,67902.0,0.000828]
[1729251247628,0.147268,67903.0,67902.0,0.001828]
[1729251247864,0.4399979,67903.0,67902.0,0.003828]
[1729251248886,0.59095705,67903.0,67902.0,0.003828]
[1729251249110,0.59595705,67903.0,67902.0,0.003828]
[1729251250057,0.69370483,67903.0,67902.0,0.003828]
[1729251250280,0.60395705,67903.0,67902.0,0.003828]
[1729251250786,0.60395705,67903.0,67902.0,0.001828]
[1729251251016,0.60495705,67903.0,67902.0,0.001828]
[1729251251240,0.60495705,67903.0,67902.0,0.002828]
[1729251251241,0.59995705,67903.0,67902.0,0.002828]
[1729251251455,0.61195705,67903.0,67902.0,0.002828]
[1729251251671,0.60695705,67903.0,67902.0,0.002828]
[1729251252347,0.162277,67899.0,67898.0,0.000828]
[1729251252572,0.59536605,67899.0,67898.0,0.000828]
[1729251254160,0.59736605,67899.0,67898.0,0.000828]
[1729251254625,0.60336605,67899.0,67898.0,0.001828]
[1729251256503,0.61273671,67899.0,67898.0,0.001828]
[1729251258814,0.61473671,67899.0,67898.0,0.001828]
[1729251259028,0.61273671,67899.0,67898.0,0.001828]
[1729251260598,0.49790681,67899.0,67898.0,0.001828]
[1729251260853,0.61273671,67899.0,67898.0,0.001828]
[1729251262653,0.61473671,67899.0,67898.0,0.001828]
[1729251263474,0.76369586,67899.0,67898.0,0.001828]
[1729251264074,0.76169586,67899.0,67898.0,0.001828]
[1729251264724,0.75169586,67899.0,67898.0,0.001828]
[1729251264964,0.76169586,67899.0,67898.0,0.001828]
[1729251265179,0.75169586,67899.0,67898.0,0.001828]
[1729251265375,0.76369586,67899.0,67898.0,0.001828]
[1729251267552,0.76169586,67899.0,67898.0,0.001828]
[1729251267789,0.76369586,67899.0,67898.0,0.001828]
[1729251271089,0.75369586,67899.0,67898.0,0.001828]
[1729251271315,0.76369586,67899.0,67898.0,0.001828]
[1729251272739,0.76169586,67899.0,67898.0,0.001828]